[Event "SixDays Budapest March GM-A 2023"]
[Site "Budapest"]
[Date "2023.03.24"]
[Round "1.1"]
[White "Horvath, Adam"]
[Black "Rosh Jain"]
[Result "1-0"]
[ECO "B20"]
[WhiteElo "2458"]
[BlackElo "2325"]
[Annotator "TA"]
[PlyCount "93"]
[EventDate "2023.03.24"]
[EventType "tourn"]
[EventCountry "HUN"]
[SourceTitle "playchess.com"]
[Source "ChessBase"]
[SourceQuality "1"]
[TimeControl "5400+30"]

{[%evp 9,92,22,51,34,50,47,38,23,47,20,0,0,8,-12,2,-1,19,-11,43,94,125,125,114,95,107,107,242,241,265,177,195,173,188,161,202,196,329,313,610,602,606,600,610,607,665,700,726,713,796,795,778,777,991,977,984,970,960,922,984,970,1034,936,936,879,5339,4637,2859,2556,29986,29987,29987,29988,29988,29988,29989,29989,29989,29990,29990,29991,29991,29992,29995,29996,29999]} 1. e4 {[%emt 0:00:34]} c5 {[%emt 0:00:36]} 2. Ne2 {[%emt 0:00:10]} d6 {[%emt 0:00:06]} 3. g3 {[%emt 0:00:04]} Nf6 {[%emt 0:00:20]} 4. Bg2 {[%emt 0:00:16]} a6 {[%emt 0:00:36]} 5. c3 {[%emt 0:01:01]} Nc6 {[%emt 0:04:14]} 6. O-O {[%emt 0:03:36] B20: Sicilian: Unusual White 2nd moves.} e6 {[%emt 0:02:35]} 7. d4 {[%emt 0:00:05]} Be7 {[%emt 0:02:05]} 8. h3 {[%emt 0:06:51] [#] White is slightly better.} Qc7 $146 {[%emt 0:03:42]} ({Predecessor:} 8... O-O 9. Be3 Rb8 10. Nd2 Qc7 11. f4 e5 12. fxe5 dxe5 13. d5 Nd8 14. g4 b5 {1-0 Kubicka,A (2210)-Eynullayev,A (2227) Titled Tuesday intern op 08th June blitz 2021 (4)}) 9. d5 {[%emt 0:06:16]} exd5 {[%emt 0:00:13]} 10. exd5 {[%emt 0:00:04]} Ne5 {[%emt 0:00:29]} 11. g4 {[%emt 0:11:33]} h6 {[%emt 0:02:35]} 12. Ng3 {[%emt 0:01:23]} Bd7 {[%emt 0:03:14]} 13. Na3 {[%emt 0:10:56]} O-O-O {[%emt 0:09:55]} (13... Ng6 $11) 14. b4 {[%emt 0:14:49]} (14. Rb1 $14) 14... c4 {[%emt 0:23:20] [#]} 15. b5 $1 {[%emt 0:13:18][%mdl 512]} axb5 {[%emt 0:01:23]} (15... Qa5 16. bxa6) 16. Rb1 {[%emt 0:00:05]} Qa5 {[%emt 0:01:58] [#]} 17. Nf5 $1 {[%emt 0:05:19]} Bf8 {[%emt 0:01:56] Loses the game.} (17... Bxf5 $16 18. gxf5 Nd3) 18. Nd4 $18 {[%emt 0:01:05]} Qa4 {[%emt 0:14:09]} 19. Naxb5 {[%emt 0:12:19]} ({Don't take} 19. Ndxb5 Qa6 20. Be3 Bxb5 $18) 19... Qxd1 {[%emt 0:00:45]} 20. Rxd1 {[%emt 0:00:02]} Bxb5 {[%emt 0:05:17]} 21. Nxb5 {[%emt 0:03:03]} Kb8 {[%emt 0:04:45]} 22. Be3 {[%emt 0:00:29][%cal Bc1e3,Be3a7,Ba7d4][%mdl 32]} Be7 {[%emt 0:01:53]} (22... Nfd7 {is a better defense.} 23. Na7 Re8) 23. Rb4 {[%emt 0:00:53]} g5 $2 {[%emt 0:03:42]} (23... Nfd7 24. f4 Nd3 25. Ba7+ (25. Rxc4 Nb2 $16) 25... Kc8 26. Rxc4+ N3c5) 24. Rdb1 {[%emt 0:00:49]} Rd7 {[%emt 0:03:26]} 25. Ba7+ {[%emt 0:00:51]} Kc8 {[%emt 0:00:06]} 26. Bd4 {[%emt 0:00:12]} Kd8 {[%emt 0:05:12]} 27. Na7 {[%emt 0:04:07]} Ke8 {[%emt 0:02:55]} 28. Rxb7 {[%emt 0:00:07]} Rxb7 {[%emt 0:00:15]} 29. Rxb7 {[%emt 0:00:04]} Nfd7 {[%emt 0:00:53]} 30. Nc6 {[%emt 0:00:50]} Bf6 {[%emt 0:00:05]} 31. a4 {[%emt 0:02:02]} Kf8 {[%emt 0:00:29]} 32. a5 {[%emt 0:00:41]} Kg7 {[%emt 0:00:30]} 33. a6 {[%emt 0:00:03]} Ra8 {[%emt 0:01:53]} 34. a7 {[%emt 0:00:03]} Kg6 {[%emt 0:00:50]} 35. Be4+ {[%emt 0:00:09]} Kg7 {[%emt 0:00:07]} 36. Nxe5 {[%emt 0:02:04]} dxe5 {[%emt 0:00:16]} 37. Be3 {[%emt 0:00:13] A strong pair of Bishops.} Nf8 {[%emt 0:01:29]} 38. d6 {[%emt 0:00:58][%cal Ob7f7] White wants to mate with Rxf7+!} Rd8 {[%emt 0:00:04]} 39. Rb8 {[%emt 0:00:29] White mates.} Rxd6 {[%emt 0:00:07]} 40. a8=Q {[%emt 0:00:07]} Be7 {[%emt 0:00:14]} 41. Kg2 {[%emt 0:00:17]} Rd1 {[%emt 0:00:13]} 42. Re8 {[%emt 0:00:15]} Bd6 {[%emt 0:00:10]} 43. Bc2 {[%emt 0:01:08]} Rd3 {[%emt 0:00:11]} 44. Bxd3 {[%emt 0:00:11]} cxd3 {[%emt 0:00:04]} 45. Qd5 {[%emt 0:00:11][%csl LRd3,LRd6]} e4 {[%emt 0:00:07]} 46. Bd4+ {[%emt 0:00:25]} Kh7 {[%emt 0:00:05]} 47. Qxf7# {[%emt 0:00:07] Weighted Error Value: White=0.07 (flawless) /Black=0.40} 1-0

[Event "SixDays Budapest March GM-A 2023"]
[Site "Budapest"]
[Date "2023.03.24"]
[Round "1.2"]
[White "Kushagra Mohan"]
[Black "Pap, Misa"]
[Result "1-0"]
[ECO "C78"]
[WhiteElo "2396"]
[BlackElo "2403"]
[Annotator "TA"]
[PlyCount "101"]
[EventDate "2023.03.24"]
[EventType "tourn"]
[EventCountry "HUN"]
[SourceTitle "playchess.com"]
[Source "ChessBase"]
[SourceQuality "1"]
[TimeControl "5400+30"]

{[%evp 17,101,29,31,19,14,-7,-7,0,26,21,31,18,21,14,29,11,68,72,91,90,85,68,65,59,65,52,44,54,58,30,37,38,69,76,77,71,60,61,89,81,87,97,86,87,65,73,80,79,465,442,466,465,458,425,441,442,451,449,440,440,561,552,557,553,558,432,658,657,639,650,627,626,928,920,1042,964,1632,1548,1311,1330,29986,29986,29986,29987,29989,29990]} 1. e4 e5 {[%emt 0:00:39]} 2. Nf3 {[%emt 0:00:44]} Nc6 {[%emt 0:00:13]} 3. Bb5 {[%emt 0:00:11]} a6 {[%emt 0:00:11]} 4. Ba4 {[%emt 0:00:04]} Nf6 {[%emt 0:00:06]} 5. O-O {[%emt 0:00:04]} Bc5 {[%emt 0:00:27]} 6. c3 {[%emt 0:00:43]} O-O {[%emt 0:00:17]} 7. d4 {[%emt 0:00:57]} Bb6 {[%emt 0:02:23]} 8. Re1 {[%emt 0:07:04]} d6 {[%emt 0:00:20]} 9. h3 {[%emt 0:03:12]} h6 {[%emt 0:16:59]} 10. Bxc6 {[%emt 0:10:32] C65: Ruy Lopez: Berlin Defence (3...Nf6), unusual lines and 4 0-0 Bc5.} bxc6 {[%emt 0:00:06]} 11. dxe5 {[%emt 0:00:03]} dxe5 {[%emt 0:00:09]} 12. Qa4 {[%emt 0:00:32] [#] The position is equal.} Qd6 $146 {[%emt 0:03:46]} ({Predecessor:} 12... Re8 13. Na3 Nh5 14. Qxc6 Bxh3 15. Nc4 Bd7 16. Qd5 Nf6 17. Qd3 Ng4 18. Be3 Bxe3 19. Nxe3 {½-½ Anokhin,Y (2428)-Woelfelschneider,P (2404) WLS/SRCCC/21/D1 2021 [1]}) 13. Na3 {[%emt 0:02:21][%cal Bb1a3,Ba3c4,Bc4a5,Ba5b3,Bb3c5,Bc5d3][%mdl 32]} Nd7 {[%emt 0:03:09]} ({Resist} 13... Qc5 14. Be3 Qe7 15. Nc4 $16 (15. Qxc6 Rb8 $11)) 14. Nc4 {[%emt 0:00:24]} Qf6 {[%emt 0:03:17]} 15. Be3 {[%emt 0:08:24]} (15. Nxb6 {simplifies} cxb6 16. Be3 Rb8 17. Kh2) 15... Re8 {[%emt 0:05:59]} 16. Rad1 {[%emt 0:06:03]} Rb8 {[%emt 0:04:17]} (16... a5 $11) 17. Qa3 $14 {[%emt 0:05:14] White has more active pieces. The black rooks are badly placed.} Bxe3 {[%emt 0:23:13]} 18. Rxe3 {[%emt 0:00:28]} ({Of course not} 18. Nxe3 Nf8 $11) 18... Rb5 {[%emt 0:05:33]} 19. Na5 {[%emt 0:06:48]} Nf8 {[%emt 0:00:10][%cal Bd7f8,Bf8g6,Bg6f4][%mdl 32]} 20. c4 {[%emt 0:00:05]} Rb8 {[%emt 0:01:52]} 21. Nb3 {[%emt 0:05:07]} (21. Kh2 {feels hotter.} Ng6 22. Rd2 Nf4 23. Qc3) 21... Ng6 {[%emt 0:00:45]} 22. Nc5 {[%emt 0:03:37]} (22. Kh2 {with more complications.} Nf4 23. Nc5 g5 24. Rd2) 22... Nf4 {[%emt 0:01:43][%cal Oc8h3]} 23. Ne1 {[%emt 0:01:58] A dynamic duo of knights.} (23. Nxa6 $2 Ra8 24. Nxc7 Rxa3 25. Nxe8 Qg6 $19) (23. Kh2 {looks sharper.} a5 24. Rd2 Ra8 25. Qa4) 23... Be6 {[%emt 0:06:50]} 24. Qc3 {[%emt 0:04:06]} (24. Nxa6 $2 {too greedy.} Ra8 25. Nxc7 Rxa3 26. Nxe8 Qe7 27. Rxa3 Qxe8 $19) 24... Rbd8 {[%emt 0:05:29]} 25. Rxd8 {[%emt 0:02:29]} Rxd8 26. Ncd3 {[%emt 0:00:19]} Rd4 {[%emt 0:00:43]} 27. b3 {[%emt 0:01:15]} Qg5 {[%emt 0:03:32][%cal Od4d3] Threatens to win with ...Rxd3!} 28. Nxf4 {[%emt 0:01:06]} Qxf4 {[%emt 0:00:32]} 29. Nd3 {[%emt 0:00:22]} Qg5 {[%emt 0:00:41]} 30. Qa5 {[%emt 0:03:39]} Qd8 {[%emt 0:06:35]} 31. Nxe5 {[%emt 0:00:54]} Rd1+ {[%emt 0:00:27]} 32. Re1 {[%emt 0:00:46]} Bxh3 $2 {[%emt 0:02:05][%mdl 8192] A mistake that costs the game.} 33. gxh3 $18 {[%emt 0:02:32]} Rxe1+ {[%emt 0:01:15]} 34. Qxe1 {[%emt 0:00:27]} Qg5+ {[%emt 0:00:00]} 35. Ng4 h5 {[#]} 36. f4 $1 {[%emt 0:00:55]} Qxf4 {[%emt 0:00:10]} 37. Qe3 {[%emt 0:00:30]} Qd6 {[%emt 0:00:00]} 38. Nf2 {[%emt 0:00:08]} Qg6+ {[%emt 0:00:10]} 39. Kf1 {[%emt 0:00:12]} Qf6 {[%emt 0:00:00]} 40. Qd2 {[%emt 0:00:57]} Qe5 {[%emt 0:00:08]} 41. Kg2 {[%emt 0:00:25]} a5 {[%emt 0:00:14]} (41... g6 $142 42. Qe3 Kg7) 42. Qd8+ {[%emt 0:00:22]} Kh7 {[%emt 0:00:11]} 43. Qd7 {[%emt 0:00:05][%csl LRc6,LRf7]} Qg5+ {[%emt 0:00:13]} 44. Kf3 {[%emt 0:00:18]} Qc1 {[%emt 0:00:19]} 45. Qxf7 {[%emt 0:00:23]} Qc3+ {[%emt 0:00:05]} 46. Kg2 {[%emt 0:00:04]} Kh6 {[%emt 0:00:16]} 47. Qxc7 {[%emt 0:00:23]} Qf6 {[%emt 0:00:10]} 48. Qxa5 {[%emt 0:00:16]} Qg5+ {[%emt 0:00:04]} 49. Qxg5+ {[%emt 0:00:04] White mates.} Kxg5 {[%emt 0:00:03]} 50. a4 {[%emt 0:00:06][%cal Ba2a4,Ba4a5][%mdl 32]} c5 {[%emt 0:00:03]} 51. a5 {Weighted Error Value: White=0.08 (flawless) /Black=0.37} 1-0

[Event "SixDays Budapest March GM-A 2023"]
[Site "Budapest"]
[Date "2023.03.24"]
[Round "1.3"]
[White "Leszko, Bence"]
[Black "Arfan, Aditya Bagus"]
[Result "1/2-1/2"]
[ECO "B11"]
[WhiteElo "2283"]
[BlackElo "2374"]
[Annotator "TA"]
[PlyCount "86"]
[EventDate "2023.03.24"]
[EventType "tourn"]
[EventCountry "HUN"]
[SourceTitle "playchess.com"]
[Source "ChessBase"]
[SourceQuality "1"]
[TimeControl "5400+30"]

{[%evp 11,86,8,12,17,26,22,25,12,22,0,16,0,9,13,27,6,14,12,6,8,6,0,0,0,0,0,0,0,0,-9,0,-3,-3,-9,0,0,0,0,0,0,0,0,0,0,0,0,0,0,0,0,0,0,0,0,0,0,0,0,0,0,0,0,0,0,0,0,154,21,22,0,0,0,0,0,0,0,0]} 1. e4 {[%emt 0:00:33]} c6 {[%emt 0:00:30]} 2. Nf3 {[%emt 0:00:33]} d5 {[%emt 0:01:04]} 3. Nc3 {[%emt 0:00:06]} Bg4 {[%emt 0:00:03]} 4. h3 {[%emt 0:00:11]} Bxf3 {[%emt 0:00:02]} 5. Qxf3 {[%emt 0:00:09]} e6 {[%emt 0:00:02]} 6. d4 {[%emt 0:00:19]} dxe4 {[%emt 0:00:10]} 7. Qxe4 {[%emt 0:00:08] B11: Caro-Kann: Two Knights Variation.} Nf6 {[%emt 0:00:21]} 8. Qd3 {[%emt 0:00:13]} Bd6 {[%emt 0:00:11][%cal Bf8d6,Bd6e7,Be7f6][%mdl 32]} 9. Bd2 {[%emt 0:04:00] White has an edge.} Nbd7 {[%emt 0:02:40] [#]} 10. Ne4 $146 {[%emt 0:03:17]} ({Predecessor:} 10. O-O-O Qc7 11. g3 O-O-O 12. Bg2 Kb8 13. Rhe1 Nb6 14. Ne4 Nxe4 15. Rxe4 e5 16. dxe5 Bxe5 {0-1 Hou,Y (2649)-Brunello,S (2566) Douglas IoM op 2016 (9)}) 10... Be7 {[%emt 0:01:42]} 11. Be2 {[%emt 0:04:13]} O-O {[%emt 0:01:23]} 12. Nxf6+ {[%emt 0:01:34]} Bxf6 {[%emt 0:01:49]} 13. O-O {[%emt 0:00:37]} c5 14. Be3 {[%emt 0:01:00]} cxd4 {[%emt 0:02:50]} 15. Bxd4 {[%emt 0:01:00]} Qc7 {[%emt 0:00:00]} 16. Bxf6 {[%emt 0:00:30]} Nxf6 {[%emt 0:00:25]} 17. Bf3 {[%emt 0:00:08]} Rfd8 18. Qb3 Rac8 {[%emt 0:07:28]} 19. c3 {[%emt 0:01:07]} b6 {[%emt 0:01:18]} 20. Rfd1 {[%emt 0:00:18]} Nd7 {[%emt 0:04:20][%cal Bf6d7,Bd7c5,Bc5a4][%mdl 32]} 21. Qc2 {[%emt 0:02:03]} g6 {[%emt 0:03:45]} 22. Qe4 {[%emt 0:04:44]} Nc5 {[%emt 0:02:04]} 23. Qe2 {[%emt 0:08:06]} Na4 {[%emt 0:13:33]} 24. Qb5 {[%emt 0:05:37]} Qf4 {[%emt 0:01:42]} 25. Bb7 Rb8 {[%emt 0:02:48]} 26. Rxd8+ {[%emt 0:07:13]} Rxd8 {[%emt 0:00:02]} 27. g3 {[%emt 0:00:08]} Qc7 {[%emt 0:00:29] ...Nxb2 is the strong threat.} 28. Qxa4 {[%emt 0:00:06] [#] Hoping for Bf3.} Qxb7 {[%emt 0:00:02]} 29. Rd1 {[%emt 0:00:09]} Rxd1+ {[%emt 0:00:48]} 30. Qxd1 $11 {[%emt 0:00:07][%mdl 4096] Endgame KQ-KQ} Qe4 {[%emt 0:00:58]} 31. h4 {[%emt 0:03:51]} Kg7 {[%emt 0:02:50]} 32. b3 {[%emt 0:03:39]} h6 {[%emt 0:03:03]} 33. c4 {[%emt 0:05:04]} Kf6 {[%emt 0:11:20]} 34. Qc1 {[%emt 0:03:34]} h5 {[%emt 0:02:30]} 35. b4 {[%emt 0:00:35]} Ke7 {[%emt 0:00:16]} 36. a3 {[%emt 0:00:52]} Qd4 {[%emt 0:01:21]} 37. Qg5+ {[%emt 0:00:31]} Kd7 {[%emt 0:02:14]} 38. Qb5+ {[%emt 0:00:13]} Kc7 $2 {[%emt 0:09:59] [#]} ({Black should try} 38... Ke7 $11) 39. Qa6 {[%emt 0:01:57]} (39. Qa4 $16) 39... Kb8 {[%emt 0:00:48] The position is equal.} 40. a4 {[%emt 0:03:53]} (40. Qa4 $5 {[%cal Ra4e8]} Qd8 41. Qc6 $11) 40... Qd1+ {[%emt 0:03:47]} 41. Kg2 {[%emt 0:00:10]} Qd7 {[%emt 0:00:24]} 42. Kg1 {[%emt 0:01:06]} Qd1+ {[%emt 0:00:30]} 43. Kg2 {[%emt 0:00:06]} Qd7 {[%emt 0:00:05] Weighted Error Value: White=0.10 (very precise) /Black=0.09 (flawless)} 1/2-1/2

[Event "SixDays Budapest March GM-A 2023"]
[Site "Budapest"]
[Date "2023.03.24"]
[Round "1.4"]
[White "Berczes, David"]
[Black "Sammed Jaykumar, Shete"]
[Result "1-0"]
[ECO "A49"]
[WhiteElo "2427"]
[BlackElo "2454"]
[Annotator "TA"]
[PlyCount "119"]
[EventDate "2023.03.24"]
[EventType "tourn"]
[EventCountry "HUN"]
[SourceTitle "playchess.com"]
[Source "ChessBase"]
[SourceQuality "1"]
[TimeControl "5400+30"]

{[%evp 12,119,21,29,48,13,43,25,24,27,37,4,9,9,16,12,13,0,5,0,0,0,22,25,23,39,47,35,49,39,49,43,81,37,62,0,68,62,58,52,172,155,241,254,370,358,356,353,337,266,254,196,204,197,197,197,206,210,266,266,492,486,498,515,506,505,482,482,467,402,543,487,497,410,478,477,458,286,279,279,345,345,413,347,387,387,497,493,518,400,485,483,609,602,661,635,849,844,844,844,819,801,786,737,29946,29948,12850,12841,6045,5146]} 1. d4 {[%emt 0:06:58]} Nf6 {[%emt 0:00:37]} 2. Nf3 {[%emt 0:01:04]} g6 {[%emt 0:00:07]} 3. g3 {[%emt 0:02:48]} Bg7 {[%emt 0:00:06]} 4. Bg2 {[%emt 0:00:04]} O-O {[%emt 0:00:07]} 5. O-O d6 {[%emt 0:00:02]} 6. a4 {[%emt 0:00:38]} Nbd7 {[%emt 0:00:49][%cal Bb8d7,Bd7e5,Be5c4][%mdl 32]} 7. a5 {[%emt 0:00:20]} Rb8 {[%emt 0:01:07] A49: 1 d4 Nf6 2 Nf3 g6 3 g3: Anti-King's Indian systems.} 8. Nc3 {[%emt 0:03:46]} c5 {[%emt 0:02:40]} 9. e4 {[%emt 0:03:30]} cxd4 {[%emt 0:02:37] White has an edge.} 10. Nxd4 {[%emt 0:00:07]} Ne5 {[%emt 0:00:04]} 11. h3 {[%emt 0:07:08] [#]} Bd7 $146 {[%emt 0:04:04]} ({Predecessor:} 11... Nc6 12. Nb3 Nd7 13. Be3 Nde5 14. Qe2 Be6 15. Nd5 f5 16. exf5 Bxf5 17. f4 Nf7 {1-0 Tosic,M (2389)-Lazov,T (2290) Palic Karadzic Memorial op 2016 (8)}) 12. Nd5 {[%emt 0:23:58]} Nc4 {[%emt 0:09:32]} 13. Qd3 {[%emt 0:09:10]} Nxd5 {[%emt 0:07:04]} 14. Qxc4 {[%emt 0:05:37]} Nc7 {[%emt 0:00:21]} 15. Rd1 {[%emt 0:03:28]} Ne6 {[%emt 0:02:47]} 16. Be3 {[%emt 0:08:41]} Nc5 {[%emt 0:10:34]} 17. b4 {[%emt 0:05:14]} Ne6 {[%emt 0:00:30]} 18. Qd3 {[%emt 0:00:58]} b6 {[%emt 0:08:23]} 19. axb6 {[%emt 0:03:02]} axb6 {[%emt 0:00:08]} 20. Ra7 {[%emt 0:02:27]} b5 {[%emt 0:01:56]} 21. c3 {[%emt 0:05:44]} Nc7 {[%emt 0:05:08]} 22. Nb3 {[%emt 0:02:43] White is much more active.} Ne6 {[%emt 0:05:13]} 23. Nd4 {[%emt 0:02:15]} (23. h4 $14) 23... Qc8 {[%emt 0:02:45]} (23... Nc7 $1 $11) 24. h4 $14 {[%emt 0:00:32][%cal Bh3h4,Bh4h5,Bh5h6][%mdl 32]} Nd8 {[%emt 0:02:11]} 25. h5 {[%emt 0:00:53]} e5 {[%emt 0:03:08] White now steadily converts the win.} (25... Re8 $14) 26. h6 {[%emt 0:00:53]} Bf6 {[%emt 0:00:17]} (26... exd4 $16 {was necessary.} 27. hxg7 Re8) 27. Nf5 $18 {[%emt 0:01:30]} (27. Nf3 $6 Nb7 28. Rda1 Be6) 27... Nb7 {[%emt 0:13:23]} (27... gxf5 $2 28. Qxd6 Be6 29. exf5 $18) (27... Bxf5 {might work better.} 28. exf5 Qxf5 29. Qxf5 (29. Qxd6 Ne6 $16) 29... gxf5 30. Rxd6 Ne6) 28. Nxd6 {[%emt 0:00:31]} Nxd6 {[%emt 0:00:06]} 29. Qxd6 {[%emt 0:00:11]} Be6 {[%emt 0:00:02] Black is weak on the dark squares} 30. Rc7 {[%emt 0:00:38]} Qe8 {[%emt 0:00:46] [#] ...Rd8 is the strong threat.} 31. Qc6 $40 {[%emt 0:00:41][%mdl 128] Black is in trouble.} (31. Bc5 $2 Rd8 32. Qxf8+ Qxf8 33. Bxf8 Rxd1+ 34. Bf1 Kxf8 $19) 31... Qxc6 {[%emt 0:00:33]} 32. Rxc6 {[%emt 0:00:01]} Rfc8 {[%emt 0:00:07]} 33. Rxc8+ {[%emt 0:00:42]} Rxc8 {[%emt 0:00:06]} 34. Bf1 {[%emt 0:00:06]} Rxc3 {[%emt 0:00:45]} 35. Bc5 {[%emt 0:01:02] Wards off Be7. Black must now prevent Ra1.} (35. Bxb5 $6 Be7 $16) 35... Bg5 $2 {[%emt 0:00:46]} (35... Rc2 36. Ra1 Ra2 37. Rxa2 Bxa2 38. Bxb5 Bg5) 36. Ra1 {[%emt 0:00:31] Threatening mate with Ra8+.} (36. Bxb5 Rc1 37. Rxc1 Bxc1 $18) 36... Bxh6 {[%emt 0:02:12]} 37. Ra8+ {[%emt 0:00:05]} (37. Bxb5 Bd2 $14) 37... Kg7 {[%emt 0:00:03]} 38. Bf8+ {[%emt 0:00:07][%mdl 64] [#] Skewer, Deflection} ({Weaker is} 38. Bxb5 Bd2 $11) 38... Kf6 {[%emt 0:00:03] And now ...Bxf8 would win.} 39. Bxh6 {[%emt 0:00:04]} Rb3 {[%emt 0:00:09]} 40. Bd2 {[%emt 0:01:47]} ({Less strong is} 40. Bxb5 Rxb4 41. Bd3 Rd4 $18) 40... Bg4 {[%emt 0:01:02]} 41. Ra6+ {[%emt 0:00:34]} Kg7 {[%emt 0:00:18]} 42. Bg2 {[%emt 0:00:29]} Rb1+ {[%emt 0:01:29]} 43. Kh2 {[%emt 0:00:02]} Rb2 {[%emt 0:00:09]} 44. Be1 {[%emt 0:00:58] aiming for Bc3.} f6 {[%emt 0:01:32]} 45. Ra7+ {[%emt 0:00:04]} Kh6 {[%emt 0:00:06]} 46. Ra1 {[%emt 0:00:15]} g5 {[%emt 0:00:15]} 47. Kg1 {[%emt 0:00:47]} Kg6 {[%emt 0:00:21]} 48. f3 {[%emt 0:00:08]} Be6 {[%emt 0:01:02]} 49. Bf1 {[%emt 0:00:33]} Rb3 {[%emt 0:00:06]} 50. Be2 {[%emt 0:00:53]} h5 {[%emt 0:00:13]} 51. Rc1 {[%emt 0:00:27] Inhibits Bc4.} ({Don't do} 51. Bxb5 Rxf3 52. Ra7 Rb3 53. Be8+ Kh6 $18) 51... g4 {[%emt 0:01:16]} 52. fxg4 {[%emt 0:00:31]} hxg4 {[%emt 0:00:58]} 53. Bxb5 {[%emt 0:00:21]} Rb2 {[%emt 0:02:35]} 54. Bc4 {[%emt 0:00:32]} Bxc4 {[%emt 0:00:16]} 55. Rxc4 {[%emt 0:00:02] KRB-KR} f5 {[%emt 0:00:05]} 56. exf5+ {[%emt 0:00:52]} Kxf5 {[%emt 0:00:05]} 57. Bc3 {[%emt 0:00:49]} Rc2 {[%emt 0:00:45]} 58. b5 {[%emt 0:00:44]} Rc1+ {[%emt 0:00:46]} 59. Kf2 {[%emt 0:00:05] White wants to mate with b6.} Rc2+ {[%emt 0:00:04]} 60. Ke1 {[%emt 0:00:26] Weighted Error Value: White=0.19 (very precise) /Black=0.52} 1-0

[Event "SixDays Budapest March GM-A 2023"]
[Site "Budapest"]
[Date "2023.03.24"]
[Round "1.5"]
[White "Pfreundt, Jakob"]
[Black "Bodi, Tibor"]
[Result "1/2-1/2"]
[ECO "B15"]
[WhiteElo "2407"]
[BlackElo "2356"]
[Annotator "TA"]
[PlyCount "79"]
[EventDate "2023.03.24"]
[EventType "tourn"]
[EventCountry "HUN"]
[SourceTitle "playchess.com"]
[Source "ChessBase"]
[SourceQuality "1"]
[TimeControl "5400+30"]

{[%evp 17,79,10,28,22,47,26,56,63,46,47,60,53,72,39,52,40,56,15,55,32,128,40,39,51,107,110,108,110,102,105,110,110,110,110,102,85,95,77,92,100,100,97,106,73,73,73,143,102,108,79,105,0,155,164,162,157,150,173,143,0,0,0,137,0]} 1. e4 {[%emt 0:00:35]} c6 {[%emt 0:00:57]} 2. d4 {[%emt 0:00:42]} d5 {[%emt 0:00:02]} 3. Nc3 {[%emt 0:00:50]} dxe4 {[%emt 0:01:07]} 4. Nxe4 {[%emt 0:00:08]} Nf6 {[%emt 0:00:05]} 5. Nxf6+ {[%emt 0:00:41]} exf6 {[%emt 0:00:03]} 6. Bc4 {[%emt 0:00:25][%cal Bf1c4,Bc4d3,Bd3c2][%mdl 32]} Bd6 {[%emt 0:00:30]} 7. Qe2+ {[%emt 0:00:16]} Qe7 {[%emt 0:00:22]} 8. Qxe7+ {[%emt 0:00:11]} Kxe7 {[%emt 0:00:27]} 9. Ne2 {[%emt 0:00:09]} Be6 {[%emt 0:01:48]} 10. Bd3 {[%emt 0:00:13] B15: Caro-Kann: 3 Nc3: 3...g6 and 3...dxe4 4 Nxe4 Nf6 5 Nxf6+ exf6.} Nd7 {[%emt 0:05:10]} 11. c4 {[%emt 0:00:37] [#]} c5 $146 {[%emt 0:03:05]} ({Predecessor:} 11... Nf8 12. Bf4 Ng6 13. Bxd6+ Kxd6 14. O-O-O Rad8 15. g3 Rhe8 16. Nc3 Bg4 17. Rde1 Bf3 {½-½ Lintchevski,D (2561)-Trakru,R (1987) Titled Tuesday intern op 03rd Aug blitz 2021 (1)}) 12. d5 {[%emt 0:09:11] White is slightly better.} Ne5 {[%emt 0:00:23]} 13. Bc2 {[%emt 0:00:12]} Bd7 {[%emt 0:12:35]} 14. b3 {[%emt 0:00:24]} Rhe8 {[%emt 0:01:19]} 15. h3 {[%emt 0:22:08]} (15. Bxh7 $2 g6 16. Kd2 Rh8 $19) (15. f4 $5 {[%cal Rf4e5]} Ng6 16. O-O $16) 15... Kd8 {[%emt 0:03:14]} 16. Be3 {[%emt 0:02:04]} (16. Bxh7 g6 17. Kd2 Rh8 $15) 16... Kc7 {[%emt 0:03:36]} 17. a4 {[%emt 0:08:54]} (17. Bxh7 g6 $11) 17... a6 {[%emt 0:03:12]} 18. a5 {[%emt 0:01:15]} (18. Bxh7 g6 $15) 18... Re7 {[%emt 0:00:34]} (18... Ng6 $14) 19. O-O-O {[%emt 0:06:01]} ({Worse is} 19. Bxh7 g6 20. Kd2 Rh8 $17) (19. b4 $1 $16 {[%cal Rb4c5]}) 19... Rae8 $14 {[%emt 0:03:41]} 20. Nf4 {[%emt 0:03:32]} (20. Bxh7 $2 g6 21. Ng3 Rh8 $17) 20... Kb8 {[%emt 0:04:46]} ({Black should play} 20... g6 $14) 21. Nh5 $16 {[%emt 0:01:07]} (21. Bxh7 $2 {perishes.} g6 22. h4 Rh8 23. Bxg6 fxg6 $19) 21... Rg8 {[%emt 0:01:18]} 22. Rhe1 {[%emt 0:10:23]} (22. Bxh7 $2 {too greedy.} Rh8 23. Nxf6 gxf6 $19) 22... Ng6 {[%emt 0:04:50]} 23. Bxg6 {[%emt 0:02:38]} hxg6 {[%emt 0:00:57]} 24. Bf4 {[%emt 0:00:28]} Be5 {[%emt 0:08:20]} 25. Bxe5+ {[%emt 0:00:15]} Rxe5 {[%emt 0:00:36]} 26. Nf4 {[%emt 0:00:50] And now Nd3 would win.} Bf5 {[%emt 0:06:18]} 27. Kd2 {[%emt 0:14:14]} Kc7 {[%emt 0:01:18]} 28. Nd3 {[%emt 0:08:33]} Bxd3 {[%emt 0:00:57]} 29. Kxd3 {[%emt 0:00:01][%mdl 4096] Endgame KRR-KRR} Rge8 {[%emt 0:03:05]} 30. Re3 {[%emt 0:00:30]} Rxe3+ {[%emt 0:02:35]} 31. fxe3 {[%emt 0:00:02] KR-KR} f5 {[%emt 0:00:29]} (31... Rb8 $142) 32. Rf1 {[%emt 0:03:51]} Kd6 {[%emt 0:00:37]} 33. Rf4 {[%emt 0:01:15]} Ke5 {[%emt 0:01:14][%cal Ob7b6]} 34. Rf1 {[%emt 0:01:04]} (34. Rf2 $16) 34... g5 $2 {[%emt 0:03:48] [#]} (34... Kd6 $11) 35. b4 $1 {[%emt 0:00:40][%mdl 512]} cxb4 {[%emt 0:01:08]} 36. Rb1 {[%emt 0:00:05]} Kd6 {[%emt 0:01:30] Hoping for ...Kc5.} 37. Rxb4 {[%emt 0:00:03]} Re7 {[%emt 0:00:15]} 38. Kd4 {[%emt 0:00:47]} Re4+ {[%emt 0:00:15]} 39. Kd3 {[%emt 0:00:03]} Re7 {[%emt 0:00:10]} 40. Kd4 {[%emt 0:01:40] Weighted Error Value: White=0.24 (precise) /Black=0.25 (precise)} (40. Rb6+ $16 Ke5 41. Rb2) 1/2-1/2